bitfinex/quotes_ETHUSD_20250608
["timestamp","ask_amount","ask_price","bid_price","bid_amount"]
[1749356003913,2.79557,2511.8,2511.6,3.98144201]
[1749356004118,2.79557,2511.8,2511.7,6.412]
[1749356005649,2.79557,2511.8,2511.7,10.3933672]
[1749356008523,0.8287,2511.8,2511.7,10.3933672]
[1749356010231,0.8287,2511.8,2511.7,6.412]
[1749356010648,0.8287,2511.8,2511.4,16.0]
[1749356010804,0.8287,2511.8,2511.5,6.411]
[1749356011647,0.8287,2511.8,2511.6,6.412]
[1749356011936,0.48097548,2511.7,2511.6,6.412]
[1749356012114,0.8287,2511.8,2511.6,6.412]
[1749356014447,0.8287,2511.8,2511.4,26.39377934]
[1749356014645,0.7871,2511.8,2511.5,6.411]
[1749356014821,0.8139,2511.6,2511.5,6.411]
[1749356016246,0.8139,2511.6,2511.3,20.68288265]
[1749356016419,0.8139,2511.6,2511.5,6.411]
[1749356019144,0.8139,2511.6,2511.5,6.41]
[1749356023325,0.8139,2511.6,2511.5,10.39168425]
[1749356024239,0.8139,2511.6,2511.5,6.41]
[1749356026241,2.4459,2511.6,2511.5,6.41]
[1749356027152,2.4459,2511.6,2511.5,10.39168425]
[1749356030928,21.18897216,2512.0,2511.5,10.39168425]
[1749356031135,3.95772001,2511.9,2511.7,3.98136322]
[1749356031348,1.632,2511.8,2511.7,3.98136322]
[1749356031837,1.632,2511.8,2511.6,3.9814396]
[1749356035435,1.632,2511.8,2511.5,10.39162187]
[1749356035978,1.632,2511.8,2511.5,10.39160055]
[1749356036674,1.632,2511.8,2511.6,6.408]
[1749356036866,4.21445185,2511.8,2511.6,6.408]
[1749356040152,17.211,2511.7,2511.6,6.408]
[1749356040862,18.843,2511.7,2511.6,6.408]
[1749356045590,19.79791132,2511.7,2511.6,6.408]
[1749356045790,18.843,2511.7,2511.6,6.408]
[1749356046598,19.79792048,2511.7,2511.6,6.408]
[1749356046892,18.843,2511.7,2511.6,6.408]
[1749356047293,17.211,2511.7,2511.6,6.408]
[1749356047592,18.843,2511.7,2511.6,6.408]
[1749356048494,19.79794594,2511.7,2511.6,6.408]
[1749356049058,18.843,2511.7,2511.6,6.408]
[1749356049259,19.79792993,2511.7,2511.6,6.408]
[1749356050562,19.79792993,2511.7,2511.4,3.98177824]
[1749356050895,18.843,2511.7,2511.5,13.03133919]
[1749356053256,18.843,2511.7,2511.6,3.98152572]
[1749356053598,19.79772435,2511.7,2511.6,3.98152572]
[1749356053819,18.843,2511.7,2511.6,3.98152572]
[1749356053980,18.843,2511.7,2511.6,4.78512572]
[1749356054707,18.843,2511.7,2511.3,4.68290976]
[1749356054907,20.7273,2511.7,2511.4,6.416]
[1749356055792,20.7273,2511.7,2511.4,10.39784268]
[1749356056099,18.843,2511.7,2511.4,10.39784268]
[1749356056267,0.95466751,2511.6,2511.4,10.39784268]
[1749356057703,18.843,2511.7,2511.4,10.39784268]
[1749356058607,18.843,2511.7,2511.4,6.416]
[1749356059374,18.843,2511.7,2511.4,10.39782356]
[1749356059700,18.843,2511.7,2511.4,10.39779294]
[1749356061462,18.843,2511.7,2511.6,3.98152572]
[1749356061662,18.843,2511.7,2511.6,10.39852572]
[1749356062577,17.211,2511.7,2511.6,10.39852572]
[1749356062765,18.848,2511.7,2511.6,10.39852572]
[1749356065210,18.848,2511.7,2511.5,8.42526252]
[1749356065380,18.848,2511.7,2511.6,6.42]
[1749356066295,18.848,2511.7,2511.6,6.421]
[1749356069608,18.848,2511.7,2511.6,10.40252572]
[1749356070014,18.848,2511.7,2511.6,6.421]
[1749356070682,18.848,2511.7,2511.6,3.98152572]
[1749356070887,18.848,2511.7,2511.6,10.40052572]
[1749356071117,18.848,2511.7,2511.6,6.419]
[1749356071281,18.848,2511.7,2511.6,10.40052572]
[1749356092654,18.846,2511.7,2511.6,11.17592572]
[1749356095780,17.211,2511.7,2511.6,11.17592572]
[1749356095979,18.846,2511.7,2511.6,11.17592572]
[1749356098780,17.211,2511.7,2511.6,11.17592572]
[1749356099086,18.846,2511.7,2511.6,27.17592572]
[1749356101166,18.846,2511.7,2511.6,30.8029721]
[1749356101765,18.846,2511.7,2511.6,30.8049721]
[1749356101978,18.846,2511.7,2511.6,26.40252572]
[1749356103570,18.846,2511.7,2511.6,30.0295721]
[1749356104098,17.211,2511.7,2511.6,30.8367721]
[1749356104388,18.846,2511.7,2511.6,30.8367721]
[1749356110774,18.845,2511.7,2511.6,31.3867721]
[1749356112271,17.209,2512.6,2512.2,0.8072]
[1749356112616,1.634,2512.5,2512.4,7.6073043]
[1749356112811,1.634,2512.5,2512.4,14.0313043]
[1749356113115,1.634,2512.5,2512.4,30.0313043]
[1749356121200,1.634,2512.5,2512.4,19.98025792]
[1749356121400,4.3093,2512.5,2512.4,16.0]
[1749356121614,4.3093,2512.5,2512.4,22.422]
[1749356122122,4.3093,2512.5,2512.4,26.40225792]
[1749356122323,4.3093,2512.5,2512.4,22.425]
[1749356122827,4.3093,2512.5,2512.4,6.425]
[1749356123237,4.3093,2512.5,2512.4,10.40525792]
[1749356123998,4.3093,2512.5,2512.4,6.425]
[1749356125792,0.7843,2512.4,2512.2,3.98051094]
[1749356125991,2.93613,2512.4,2512.3,6.424]
[1749356128494,2.93613,2512.4,2512.3,10.40441635]
[1749356132656,20.14213,2512.4,2512.3,10.40441635]
[1749356133510,17.9903,2512.4,2512.3,10.40441635]
[1749356134142,17.206,2512.4,2512.3,10.40441635]
[1749356140842,18.846,2512.4,2512.3,10.40441635]
[1749356152843,18.846,2512.4,2512.0,16.0]
[1749356153050,5.71963136,2512.3,2511.9,16.0]
[1749356153363,0.95488496,2512.2,2512.0,6.418]
[1749356153579,3.63887549,2512.3,2512.1,6.418]
[1749356153787,3.63887549,2512.3,2512.2,6.418]
[1749356154085,4.59339665,2512.3,2512.2,6.418]
[1749356159601,4.59264462,2512.3,2512.2,6.418]
[1749356162093,3.63887549,2512.3,2512.2,6.418]
[1749356162612,3.98057479,2512.2,2511.8,16.0]
[1749356162832,3.98091735,2512.0,2511.5,3.98159088]
[1749356163118,0.8009,2511.9,2511.6,6.418]
[1749356163414,1.637,2511.8,2511.6,6.418]
[1749356163713,1.637,2511.8,2511.6,10.39951623]
[1749356164127,1.65820858,2512.1,2511.7,3.98135664]
[1749356164291,2.15804089,2512.0,2511.8,6.419]
[1749356172035,1.637,2512.0,2511.8,10.40013424]
[1749356172194,0.8123,2512.3,2511.8,6.419]
[1749356172389,0.8123,2512.3,2511.8,11.18092665]
[1749356172390,1.637,2511.9,2511.8,11.18092665]
[1749356174435,1.637,2511.9,2511.8,10.40012665]
[1749356176035,1.637,2511.9,2511.8,6.419]
[1749356178257,1.637,2511.9,2511.8,10.40020869]
[1749356179057,1.637,2511.9,2511.8,27.18100869]
[1749356188862,1.637,2511.9,2511.8,26.40120869]
[1749356192770,1.637,2511.9,2511.8,19.98120869]
[1749356192980,1.637,2511.9,2511.8,26.40220869]
[1749356196242,1.637,2511.9,2511.8,19.98120869]
[1749356196611,1.637,2511.9,2511.8,30.02725507]
[1749356199845,0.7766,2512.3,2512.2,3.98057479]
[1749356200046,1.638,2512.3,2512.2,10.39857479]
[1749356205506,17.206,2512.4,2512.2,10.39857479]
[1749356205507,17.206,2512.4,2512.3,3.98041635]
[1749356205671,18.844,2512.4,2512.3,3.98041635]
[1749356208478,17.206,2512.4,2512.3,3.98041635]
[1749356208678,18.844,2512.4,2512.3,3.98041635]
[1749356221001,18.844,2512.4,2512.3,10.39241635]
[1749356221328,18.844,2512.4,2512.2,3.98047359]
[1749356221527,18.844,2512.4,2512.3,6.412]
[1749356221989,0.7764,2512.3,2512.0,16.0]
[1749356222296,0.7764,2512.3,2512.1,6.412]
[1749356224227,20.80604,2512.4,2512.3,3.98041635]
[1749356224228,17.206,2512.4,2512.3,3.98041635]
[1749356224401,18.842,2512.4,2512.3,10.39541635]
[1749356225436,18.842,2512.4,2512.3,6.415]
[1749356228528,19.79597568,2512.4,2512.3,6.415]
[1749356228831,20.89923757,2512.4,2512.3,6.415]
[1749356229333,21.85329093,2512.4,2512.3,6.415]
[1749356230539,20.89923757,2512.4,2512.3,6.415]
[1749356230745,21.85321726,2512.4,2512.3,6.415]
[1749356231507,20.89923757,2512.4,2512.3,6.415]
[1749356231909,21.85308211,2512.4,2512.3,6.415]
[1749356232542,20.89923757,2512.4,2512.3,6.415]
[1749356232856,21.85301018,2512.4,2512.3,6.415]
[1749356233237,20.89923757,2512.4,2512.3,6.415]
[1749356233546,21.85301019,2512.4,2512.3,6.415]
[1749356233742,20.89923757,2512.4,2512.3,6.415]
[1749356233949,20.89923757,2512.4,2512.2,3.98056879]
[1749356234189,20.89923757,2512.4,2512.3,6.413]
[1749356234446,21.85298008,2512.4,2512.3,6.413]
[1749356235024,20.89923757,2512.4,2512.3,6.413]
[1749356235451,21.85296131,2512.4,2512.3,6.413]
[1749356235953,20.89923757,2512.4,2512.3,6.413]
[1749356236338,21.8529441,2512.4,2512.3,6.413]
[1749356236739,20.89923757,2512.4,2512.3,6.413]
[1749356237454,21.85269276,2512.4,2512.3,6.413]
[1749356237663,20.89923757,2512.4,2512.3,6.413]
[1749356238164,21.85263841,2512.4,2512.3,6.413]
[1749356238669,20.89923757,2512.4,2512.3,6.413]
[1749356238829,18.842,2512.4,2512.3,6.413]
[1749356245273,19.79560713,2512.4,2512.3,6.413]
[1749356245429,18.842,2512.4,2512.3,6.413]
[1749356246133,19.79566958,2512.4,2512.3,6.413]
[1749356246336,18.842,2512.4,2512.3,6.413]
[1749356246731,19.79568766,2512.4,2512.3,6.413]
[1749356247871,19.79568766,2512.4,2512.3,10.39341635]
[1749356249354,19.79568766,2512.4,2512.3,6.413]
[1749356252450,19.79568766,2512.4,2512.3,10.39341635]
[1749356256658,19.79568766,2512.4,2512.3,6.413]
[1749356257576,19.79568766,2512.4,2512.3,10.39341635]
[1749356257779,19.79568766,2512.4,2512.3,6.413]
[1749356258642,19.79568766,2512.4,2512.3,10.39341635]
[1749356260772,19.79539896,2512.4,2512.3,10.39341635]
[1749356262893,19.79239896,2512.4,2512.3,10.39341635]
[1749356263596,19.79276866,2512.4,2512.3,10.39341635]
[1749356264932,19.79299827,2512.4,2512.3,10.39341635]
[1749356265833,19.79299827,2512.4,2512.1,4.78287839]
[1749356266042,0.95399827,2512.3,2511.9,16.0]
[1749356266331,25.5537056,2512.4,2512.0,6.409]
[1749356266332,21.57329983,2512.4,2512.0,6.409]
[1749356266533,0.95386071,2512.3,2512.1,6.409]
[1749356266834,25.55359456,2512.4,2512.1,6.409]
[1749356267031,0.95386568,2512.3,2512.1,6.409]
[1749356267234,25.55359456,2512.4,2512.1,6.409]
[1749356267436,3.50912198,2512.3,2512.1,6.409]
[1749356267601,2.55535946,2512.3,2512.1,6.409]
[1749356268697,5.68904624,2512.2,2511.4,0.8302]
[1749356268938,0.95335713,2512.1,2511.6,16.0]
[1749356269255,0.755,2512.2,2511.7,10.39034916]
[1749356269430,0.95295558,2512.1,2511.8,3.98119871]
[1749356269722,0.755,2512.2,2511.9,6.409]
[1749356269922,0.95296113,2512.1,2511.8,3.98119871]
[1749356270123,0.755,2512.2,2511.9,6.409]
[1749356270323,0.95270271,2512.1,2511.8,3.98119871]
[1749356270488,2.02445752,2512.2,2511.9,6.409]
[1749356270688,0.95270876,2512.1,2511.9,6.409]
[1749356271017,2.02445752,2512.2,2511.9,6.409]
[1749356271224,0.95270266,2512.1,2511.9,6.409]
[1749356271411,2.02445752,2512.2,2511.9,6.409]
[1749356271610,0.95250947,2512.1,2511.9,6.409]
[1749356271920,2.02445752,2512.2,2511.9,6.409]
[1749356272124,0.95249864,2512.1,2511.9,6.409]
[1749356272282,2.02445752,2512.2,2511.9,6.409]
[1749356272728,0.95234351,2512.1,2511.9,6.409]
[1749356273020,2.02445752,2512.2,2511.9,6.409]
[1749356273395,6.00504552,2512.2,2511.9,6.409]
[1749356273600,4.83678762,2512.1,2511.9,6.409]
[1749356273800,4.83678762,2512.1,2512.0,6.409]
[1749356274014,0.8560405,2512.1,2512.0,6.409]
[1749356279745,6.00508387,2512.2,2512.0,6.409]
[1749356279746,0.755,2512.2,2512.0,6.409]
[1749356280053,1.633,2512.1,2512.0,7.2392]
[1749356280269,1.633,2512.1,2512.0,11.22009171]
[1749356280773,1.633,2512.1,2512.0,27.22009171]
[1749356281280,17.206,2512.4,2512.3,4.81061635]
[1749356281580,18.839,2512.4,2512.3,11.22061635]
[1749356282337,18.839,2512.4,2512.3,27.61244901]
[1749356287784,17.206,2512.4,2512.3,27.61244901]
[1749356287957,18.839,2512.4,2512.3,27.61244901]
[1749356288159,18.839,2512.4,2512.3,28.16244901]
[1749356297181,18.839,2512.4,2512.3,32.88244901]
[1749356303391,1.633,2512.4,2512.3,32.88244901]
[1749356306714,0.7971,2513.2,2513.1,3.97914925]
[1749356306897,2.4291,2513.2,2513.1,26.38614925]
[1749356308010,1.632,2513.2,2513.1,30.01402479]
[1749356315157,1.632,2513.2,2513.1,26.38614925]
[1749356327351,1.632,2513.2,2513.1,29.02116242]
[1749356338064,1.632,2513.2,2513.1,29.01916242]
[1749356358191,2.4516,2513.2,2513.1,26.38414925]
[1749356358394,2.69676,2513.2,2513.1,26.38414925]
[1749356359384,2.4516,2513.2,2513.1,26.38414925]
[1749356359697,0.8196,2513.2,2513.1,26.38414925]
[1749356359888,2.4516,2513.2,2513.1,26.38414925]
[1749356377420,19.6506,2513.2,2513.1,26.38414925]
[1749356384232,18.0186,2513.2,2513.1,26.38414925]
[1749356384461,19.6536,2513.2,2513.1,26.38414925]
[1749356384635,18.834,2513.2,2513.1,26.38414925]
[1749356392127,19.6597,2513.2,2513.1,26.38414925]
[1749356392506,21.62567,2513.2,2513.1,26.38514925]
[1749356393802,21.62567,2513.2,2513.1,10.38514925]
[1749356399322,20.79997,2513.2,2513.1,10.38514925]
[1749356399647,18.834,2513.2,2513.1,10.38514925]
[1749356413957,17.199,2513.2,2513.1,10.38514925]
[1749356414157,18.831,2513.2,2513.1,10.38514925]
[1749356415745,17.199,2513.2,2513.1,10.38514925]
[1749356415946,18.831,2513.2,2513.1,10.38514925]
[1749356422339,18.831,2513.2,2513.1,11.21834925]
[1749356428267,17.199,2513.2,2513.1,11.21834925]
[1749356428444,18.831,2513.2,2513.1,11.21834925]
[1749356429666,18.831,2513.2,2513.1,27.21834925]
[1749356432283,17.199,2513.2,2513.1,27.21834925]
[1749356432491,18.83,2513.2,2513.1,27.21834925]
[1749356438782,18.83,2513.2,2513.1,26.38514925]
[1749356440372,18.83,2513.2,2513.1,19.97914925]
[1749356440573,18.83,2513.2,2513.1,26.38414925]
[1749356443165,17.199,2513.2,2513.1,26.38414925]
[1749356443463,18.83,2513.2,2513.1,26.38414925]
[1749356458123,1.631,2513.2,2513.1,26.38414925]
[1749356459555,17.198,2513.3,2513.2,19.97899092]
[1749356459826,18.829,2513.3,2513.2,19.97899092]
[1749356462514,17.198,2513.3,2513.2,19.97899092]
[1749356462716,18.829,2513.3,2513.2,22.6145799]
[1749356469236,18.829,2513.3,2513.2,23.9710799]
[1749356470132,18.829,2513.3,2513.2,28.6910799]
[1749356479561,1.631,2513.3,2513.2,28.6910799]
[1749356482454,1.631,2513.3,2513.2,35.0940799]
[1749356488828,0.7798,2514.0,2513.9,19.97788297]
[1749356489042,2.4108,2514.0,2513.9,29.01647195]
[1749356489747,2.4108,2514.0,2513.9,29.41344421]
[1749356490354,1.631,2514.0,2513.9,29.41344421]
[1749356491857,17.9738,2514.2,2514.1,3.97756652]
[1749356492062,19.6038,2514.2,2514.1,3.97756652]
[1749356492259,19.6038,2514.2,2514.1,10.37956652]
[1749356493562,19.6038,2514.2,2514.1,26.37956652]
[1749356503098,18.824,2514.2,2514.1,26.37956652]
[1749356506284,19.6038,2514.2,2514.1,26.37956652]
[1749356512967,2.4098,2514.2,2514.1,26.37956652]
[1749356525413,2.4098,2514.2,2514.1,19.97756652]
[1749356525582,2.4098,2514.2,2514.1,26.37856652]
[1749356526319,2.4098,2514.2,2514.1,19.97756652]
[1749356526495,2.4098,2514.2,2514.1,26.37856652]
[1749356534098,1.63,2514.2,2514.1,26.37856652]
[1749356541239,2.4108,2514.2,2514.1,26.37856652]
[1749356558055,18.822,2514.2,2514.1,26.37856652]
[1749356559063,18.772,2514.2,2514.1,26.37856652]
[1749356565362,18.722,2514.2,2514.1,26.37856652]
[1749356566567,18.722,2514.2,2514.1,19.97756652]
[1749356566774,19.4723,2514.2,2514.1,26.37756652]
[1749356566975,18.722,2514.2,2514.1,19.97756652]
[1749356567150,18.722,2514.2,2514.1,26.37756652]
[1749356574160,18.822,2514.2,2514.1,26.37756652]
[1749356578480,18.822,2514.2,2514.1,19.97756652]
[1749356578652,18.822,2514.2,2514.1,26.37756652]
[1749356595211,18.822,2514.2,2514.1,19.97756652]
[1749356595521,18.822,2514.2,2514.1,26.37756652]
[1749356614615,18.821,2514.2,2514.1,29.7711555]
[1749356615347,18.821,2514.2,2514.1,19.97756652]
[1749356615517,18.821,2514.2,2514.1,26.37756652]
[1749356628059,18.821,2514.2,2514.1,19.97756652]
[1749356628363,18.821,2514.2,2514.1,26.37656652]
[1749356632727,18.821,2514.2,2514.1,19.97756652]
[1749356632929,18.821,2514.2,2514.1,26.37656652]
[1749356639935,18.821,2514.2,2514.1,19.97756652]
[1749356640135,19.69893281,2514.2,2514.0,3.97760737]
[1749356640336,19.69893281,2514.2,2514.1,6.399]
[1749356641146,0.7941,2514.1,2513.7,16.0]
[1749356641465,0.7941,2514.1,2514.0,16.0]
[1749356641671,2.84340328,2514.1,2514.0,22.399]
[1749356642172,2.84340328,2514.1,2514.0,26.37672474]
[1749356645367,2.84340328,2514.1,2514.0,6.399]
[1749356647877,2.84340328,2514.1,2514.0,10.37672474]
[1749356655047,2.84340328,2514.1,2514.0,26.37672474]
[1749356655385,0.7941,2514.1,2514.0,26.37672474]
[1749356660490,17.192,2514.2,2514.1,3.97756652]
[1749356660691,18.821,2514.2,2514.1,3.97756652]
[1749356662417,17.192,2514.2,2514.1,3.97756652]
[1749356662623,18.821,2514.2,2514.1,3.97756652]
[1749356664786,18.821,2514.2,2514.1,10.37656652]
[1749356665391,18.821,2514.2,2514.1,6.399]
[1749356667589,21.61115,2514.2,2514.0,16.0]
[1749356667925,0.8255,2513.8,2513.2,4.72]
[1749356668124,0.8255,2513.8,2513.4,3.97857968]
[1749356668291,0.8255,2513.8,2513.5,6.404]
[1749356668490,1.30583217,2513.8,2513.5,6.404]
[1749356669089,1.30583217,2513.8,2513.6,6.404]
[1749356670298,0.8255,2513.8,2513.6,6.404]
[1749356672727,0.8255,2514.0,2513.6,10.38233318]
[1749356672929,0.95154608,2513.9,2513.6,10.38233318]
[1749356673227,0.8255,2514.0,2513.6,10.38233318]
[1749356673529,0.95154374,2513.9,2513.6,10.38233318]
[1749356673731,0.57546779,2513.9,2513.6,10.38233318]
[1749356675631,0.57546779,2513.9,2513.6,6.404]
[1749356676331,0.57546779,2513.9,2513.6,10.38232881]
[1749356676626,1.631,2513.8,2513.6,10.38232881]
[1749356676927,1.631,2513.8,2513.7,3.97819946]
[1749356677127,1.631,2513.8,2513.7,3.97818193]
[1749356681839,18.827,2513.8,2513.7,3.97818193]
[1749356687919,17.196,2513.8,2513.7,3.97818193]
[1749356688216,18.827,2513.8,2513.7,3.97818193]
[1749356693817,18.827,2513.8,2513.6,3.97831515]
[1749356694134,20.7097,2513.8,2513.7,6.401]
[1749356698129,20.6097,2513.8,2513.7,6.401]
[1749356699236,20.6097,2513.8,2513.7,10.37919946]
[1749356699745,18.727,2513.8,2513.7,10.37919946]
[1749356700739,18.727,2513.8,2513.7,14.00092949]
[1749356700934,18.727,2513.8,2513.7,14.83012949]
[1749356701449,18.727,2513.8,2513.7,11.20839946]
[1749356703562,18.727,2513.8,2513.7,4.80739946]
[1749356703728,18.727,2513.8,2513.7,10.38019946]
[1749356725307,18.727,2513.8,2513.7,13.01412195]
[1749356726386,1.631,2513.8,2513.7,13.01412195]
[1749356736103,18.826,2513.8,2513.7,13.01412195]
[1749356736419,18.826,2513.8,2513.7,10.37819946]
[1749356740707,18.826,2513.8,2513.7,13.01212195]
[1749356747082,18.826,2513.8,2513.7,29.01212195]
[1749356747265,18.826,2513.8,2513.7,29.83002195]
[1749356749268,18.826,2513.8,2513.7,30.81638002]
[1749356750495,1.631,2513.8,2513.7,30.81638002]
[1749356752670,1.631,2513.8,2513.7,35.53638002]
[1749356760238,1.631,2513.8,2513.7,36.08638002]
[1749356763730,17.194,2514.4,2514.3,3.97725012]
[1749356763958,18.823,2514.4,2514.3,34.71653068]
[1749356766627,18.823,2514.4,2514.3,35.50733068]
[1749356774778,1.629,2514.4,2514.3,35.50733068]
[1749356776423,1.579,2514.4,2514.3,35.50733068]
[1749356777224,1.579,2514.4,2514.3,38.46643384]
[1749356777435,1.579,2514.4,2514.3,35.17674198]
[1749356779030,1.579,2514.4,2514.3,34.38494198]
[1749356780527,1.579,2514.4,2514.3,27.98694198]
[1749356780728,1.579,2514.4,2514.3,34.38394198]
[1749356780927,1.579,2514.4,2514.3,27.98694198]
[1749356781098,1.579,2514.4,2514.3,34.38394198]
[1749356781795,1.579,2514.4,2514.3,27.98694198]
[1749356781995,1.579,2514.4,2514.3,34.38394198]
[1749356782602,1.579,2514.4,2514.3,24.69725012]
[1749356782801,1.579,2514.4,2514.3,34.38494198]
[1749356783343,1.579,2514.4,2514.3,31.09525012]
[1749356785337,1.579,2514.4,2514.3,26.37525012]
[1749356803163,1.579,2514.4,2514.3,29.66548201]
[1749356811269,17.964,2514.7,2514.6,3.97677563]
[1749356811449,18.817,2514.7,2514.6,29.66400752]
[1749356814897,18.817,2514.7,2514.6,30.07155696]
[1749356826789,1.628,2514.7,2514.6,30.07155696]
[1749356838063,1.628,2514.7,2514.6,23.67455696]
[1749356838257,1.628,2514.7,2514.6,30.07155696]
[1749356838433,2.4176,2514.7,2514.6,30.07155696]
[1749356841259,1.628,2514.7,2514.6,30.07155696]
[1749356848254,1.628,2514.7,2514.6,20.38432507]
[1749356848462,4.37816,2514.7,2514.6,26.37377563]
[1749356848766,2.4176,2514.7,2514.6,26.37377563]
[1749356852188,2.3676,2514.7,2514.6,26.37377563]
[1749356861075,1.578,2514.7,2514.6,26.37377563]
[1749356861280,1.578,2514.7,2514.6,29.66400752]
[1749356864802,1.578,2514.7,2514.6,19.97677563]
[1749356865123,2.3524,2514.7,2514.6,26.37377563]
[1749356867225,2.3524,2514.7,2514.6,19.97677563]
[1749356867537,2.80728172,2514.7,2514.6,6.397]
[1749356868325,2.80728172,2514.7,2514.6,10.37377563]
[1749356882403,2.3524,2514.7,2514.6,10.37377563]
[1749356883090,1.578,2514.7,2514.6,10.37377563]
[1749356887356,1.578,2514.7,2514.6,6.397]
[1749356887683,1.578,2514.7,2514.6,10.37377563]
[1749356891408,18.768,2514.7,2514.6,10.37377563]
[1749356892311,18.718,2514.7,2514.6,10.37377563]
[1749356895624,18.668,2514.7,2514.6,10.37377563]
[1749356896447,18.668,2514.7,2514.6,6.397]
[1749356897254,17.19,2514.7,2514.6,10.37377563]
[1749356897453,18.817,2514.7,2514.6,10.37377563]
[1749356900068,18.817,2514.7,2514.6,6.397]
[1749356900231,18.817,2514.7,2514.6,10.37377563]
[1749356905433,18.817,2514.7,2514.6,6.397]
[1749356906677,18.817,2514.7,2514.6,10.37377563]
[1749356908381,18.817,2514.7,2514.6,6.397]
[1749356908677,18.817,2514.7,2514.6,10.37377563]
[1749356926397,19.77131877,2514.7,2514.6,10.37377563]
[1749356927267,18.817,2514.7,2514.6,10.37377563]
[1749356927796,19.77127472,2514.7,2514.6,10.37377563]
[1749356928159,18.817,2514.7,2514.6,10.37377563]
[1749356935216,18.817,2514.7,2514.6,6.397]
[1749356935722,19.77125082,2514.7,2514.6,10.37377563]
[1749356935888,19.77125082,2514.7,2514.6,6.397]
[1749356936091,18.817,2514.7,2514.6,10.37377563]
[1749356936704,18.817,2514.7,2514.6,6.397]
[1749356936892,19.77120086,2514.7,2514.6,6.397]
[1749356937103,19.77120086,2514.7,2514.6,10.37377563]
[1749356937426,4.80423796,2514.6,2514.1,3.97748493]
[1749356937622,0.8274,2514.6,2514.2,19.97737446]
[1749356937830,0.8274,2514.6,2514.3,6.395]
[1749356938135,0.95381999,2514.5,2514.3,6.395]
[1749356938332,4.80420667,2514.6,2514.3,6.395]
[1749356938633,2.56739968,2514.5,2514.3,10.37224406]
[1749356938831,0.8274,2514.6,2514.3,10.37224406]
[1749356940918,0.8274,2514.6,2514.4,3.97708247]
[1749356941230,0.8274,2514.6,2514.5,6.396]
[1749356941427,1.78084538,2514.6,2514.5,6.396]
[1749356941815,0.95344538,2514.6,2514.5,6.396]
[1749356942333,3.21850893,2514.6,2514.5,6.396]
[1749356942708,2.26506355,2514.6,2514.5,6.396]
[1749356943229,3.2177225,2514.6,2514.5,6.396]
[1749356943409,2.26506355,2514.6,2514.5,6.396]
[1749356944092,3.21761843,2514.6,2514.5,6.396]
[1749356944291,2.26506355,2514.6,2514.5,6.396]
[1749356944957,3.21755812,2514.6,2514.5,6.396]
[1749356946014,2.26506355,2514.6,2514.5,6.396]
[1749356946731,3.21738617,2514.6,2514.5,6.396]
[1749356947048,2.26506355,2514.6,2514.5,6.396]
[1749356947543,3.21739046,2514.6,2514.5,6.396]
[1749356948058,2.26506355,2514.6,2514.5,6.396]
[1749356952917,3.89206355,2514.6,2514.5,6.396]
[1749356953258,1.627,2514.6,2514.5,10.37293378]
[1749356954461,1.627,2514.6,2514.5,6.396]
[1749356955274,1.627,2514.6,2514.5,10.37293238]
[1749356956957,1.627,2514.6,2514.5,6.396]
[1749356962551,2.5790935,2514.6,2514.2,20.7622215]
[1749356962742,1.627,2514.6,2514.3,10.37224791]
[1749356962937,1.627,2514.6,2514.3,3.97724791]
[1749356963132,1.627,2514.6,2514.4,6.395]
[1749356963371,3.98409814,2514.6,2514.4,6.395]
[1749356965171,17.192,2514.5,2514.4,6.395]
[1749356965952,17.192,2514.5,2514.3,3.97723527]
[1749356966154,17.192,2514.5,2514.4,6.395]
[1749356966753,18.14462861,2514.5,2514.4,6.395]
[1749356966979,20.43581129,2514.5,2514.4,6.395]
[1749356967352,20.435826,2514.5,2514.4,6.395]
[1749356968245,19.48318268,2514.5,2514.4,6.395]
[1749356968567,20.43578718,2514.5,2514.4,6.395]
[1749356968973,19.48318268,2514.5,2514.4,6.395]
[1749356969677,20.43563526,2514.5,2514.4,10.37209195]
[1749356969858,19.48318268,2514.5,2514.4,10.37209195]
[1749356970582,20.4355897,2514.5,2514.4,10.37209195]
[1749356970814,19.48318268,2514.5,2514.4,10.37209195]
[1749356971450,20.43558875,2514.5,2514.4,10.37209195]
[1749356971779,19.48318268,2514.5,2514.4,10.37209195]
[1749356974869,17.192,2514.5,2514.4,10.37209195]
[1749356975826,18.819,2514.5,2514.4,10.37209195]
[1749356988327,19.77174589,2514.5,2514.4,10.37209195]
[1749356988537,19.77177613,2514.5,2514.4,10.37209195]
[1749356988841,18.819,2514.5,2514.4,10.37209195]
[1749356989544,19.77159221,2514.5,2514.4,10.37209195]
[1749356996665,18.819,2514.5,2514.4,10.37209195]
[1749356999065,19.77184149,2514.5,2514.4,10.37209195]
[1749357003195,18.819,2514.5,2514.4,10.37209195]
[1749357003362,19.77195621,2514.5,2514.4,10.37209195]
[1749357005717,18.819,2514.5,2514.4,10.37209195]
[1749357005879,17.192,2514.5,2514.4,10.37209195]
[1749357006066,18.818,2514.5,2514.4,11.17069195]
[1749357007972,18.80482609,2514.5,2514.4,11.17069195]
[1749357018510,17.17882609,2514.5,2514.4,27.17069195]
[1749357018713,18.80482609,2514.5,2514.4,30.46092384]
[1749357020525,18.80482609,2514.5,2514.4,27.17069195]
[1749357037560,1.626,2514.5,2514.4,27.17069195]
[1749357042443,1.626,2514.5,2514.4,30.46092384]
[1749357043580,1.626,2514.5,2514.4,27.17069195]